[Event "Titled Tuesday Blitz September 27 Late 2022"]
[White "Pinero Rodriguez, Carlos Jose"]
[Black "Al-Tarboush, Ward"]
[WhiteFideId "3901726"]
[BlackFideId "7601450"]
[WhiteElo "2053"]
[BlackElo "2234"]
[Result "1-0"]
[Round "02"]
[TimeControl "180+1"]
[Date "2022.09.28"]
[WhiteClock "0:00:14"]
[BlackClock "0:00:10"]

1. e4 {[%clk 0:03:00]}  c5 {[%clk 0:03:00]} 2. Nf3 {[%clk 0:03:00]}  Nc6 {[%clk 0:03:00]} 3. Bb5 {[%clk 0:03:00]}  e6 {[%clk 0:03:00]} 4. O-O {[%clk 0:03:00]}  Nge7 {[%clk 0:02:59]} 5. c3 {[%clk 0:03:00]}  a6 {[%clk 0:02:58]} 6. Ba4 {[%clk 0:03:00]}  b5 {[%clk 0:02:57]} 7. Bc2 {[%clk 0:03:01]}  d5 {[%clk 0:02:53]} 8. exd5 {[%clk 0:02:56]}  Nxd5 {[%clk 0:02:52]} 9. d4 {[%clk 0:02:52]}  Be7 {[%clk 0:02:35]} 10. dxc5 {[%clk 0:02:48]}  Bxc5 {[%clk 0:02:36]} 11. Qe2 {[%clk 0:02:49]}  O-O {[%clk 0:02:23]} 12. Rd1 {[%clk 0:02:21]}  Qb6 {[%clk 0:02:16]} 13. g3 {[%clk 0:02:18]}  Bb7 {[%clk 0:02:13]} 14. Nbd2 {[%clk 0:02:18]}  Nf6 {[%clk 0:02:12]} 15. a4 {[%clk 0:02:12]}  Rad8 {[%clk 0:02:10]} 16. axb5 {[%clk 0:02:11]}  axb5 {[%clk 0:02:09]} 17. b4 {[%clk 0:02:10]}  Be7 {[%clk 0:02:06]} 18. Ne4 {[%clk 0:02:10]}  Rxd1+ {[%clk 0:02:03]} 19. Qxd1 {[%clk 0:02:06]}  Rd8 {[%clk 0:02:03]} 20. Qe2 {[%clk 0:02:06]}  Nd5 {[%clk 0:01:54]} 21. Bb2 {[%clk 0:01:24]}  h6 {[%clk 0:01:50]} 22. Rd1 {[%clk 0:01:23]}  Nf6 {[%clk 0:01:38]} 23. Bc1 {[%clk 0:01:19]}  Rxd1+ {[%clk 0:01:35]} 24. Qxd1 {[%clk 0:01:17]}  Nxe4 {[%clk 0:01:34]} 25. Bxe4 {[%clk 0:01:17]}  f5 {[%clk 0:01:34]} 26. Bc2 {[%clk 0:01:13]}  Nd8 {[%clk 0:01:30]} 27. Nd4 {[%clk 0:01:00]}  Bf6 {[%clk 0:01:23]} 28. Be3 {[%clk 0:00:46]}  Bxd4 {[%clk 0:01:08]} 29. Qxd4 {[%clk 0:00:40]}  Qxd4 {[%clk 0:01:08]} 30. Bxd4 {[%clk 0:00:40]}  Nc6 {[%clk 0:01:08]} 31. Bc5 {[%clk 0:00:39]}  Ne5 {[%clk 0:01:06]} 32. Kf1 {[%clk 0:00:34]}  Bd5 {[%clk 0:01:06]} 33. h4 {[%clk 0:00:28]}  Bc4+ {[%clk 0:01:05]} 34. Ke1 {[%clk 0:00:28]}  Kf7 {[%clk 0:01:05]} 35. Kd2 {[%clk 0:00:22]}  g5 {[%clk 0:01:01]} 36. hxg5 {[%clk 0:00:22]}  hxg5 {[%clk 0:01:02]} 37. Bd1 {[%clk 0:00:22]}  Kg6 {[%clk 0:00:53]} 38. Bd4 {[%clk 0:00:21]}  Nc6 {[%clk 0:00:51]} 39. Bc5 {[%clk 0:00:22]}  e5 {[%clk 0:00:44]} 40. Be2 {[%clk 0:00:18]}  Bxe2 {[%clk 0:00:42]} 41. Kxe2 {[%clk 0:00:19]}  e4 {[%clk 0:00:40]} 42. c4 {[%clk 0:00:16]}  bxc4 {[%clk 0:00:41]} 43. b5 {[%clk 0:00:17]}  Na5 {[%clk 0:00:41]} 44. Bb4 {[%clk 0:00:16]}  Nb7 {[%clk 0:00:37]} 45. Kd2 {[%clk 0:00:17]}  f4 {[%clk 0:00:37]} 46. g4 {[%clk 0:00:17]}  Kf6 {[%clk 0:00:35]} 47. Kc3 {[%clk 0:00:17]}  e3 {[%clk 0:00:31]} 48. f3 {[%clk 0:00:17]}  Ke5 {[%clk 0:00:22]} 49. Kxc4 {[%clk 0:00:17]}  Nd6+ {[%clk 0:00:17]} 50. Kc5 {[%clk 0:00:15]}  Ke6 {[%clk 0:00:04]} 51. b6 {[%clk 0:00:14]}  Kd7 {[%clk 0:00:04]} 52. Kd5 {[%clk 0:00:13]}  Nb5 {[%clk 0:00:04]} 53. Ke5 {[%clk 0:00:12]}  Kc6 {[%clk 0:00:04]} 54. Kf5 {[%clk 0:00:12]}  Nd4+ {[%clk 0:00:05]} 55. Kxg5 {[%clk 0:00:12]}  e2 {[%clk 0:00:02]} 56. Kxf4 {[%clk 0:00:11]}  Nc2 {[%clk 0:00:03]} 57. Bd2 {[%clk 0:00:11]}  e1=Q {[%clk 0:00:02]} 58. Bxe1 {[%clk 0:00:11]}  Nxe1 {[%clk 0:00:03]} 59. g5 {[%clk 0:00:11]}  Ng2+ {[%clk 0:00:01]} 60. Kf5 {[%clk 0:00:10]}  Kxb6 {[%clk 0:00:02]} 61. g6 {[%clk 0:00:07]}  Nh4+ {[%clk 0:00:02]} 62. Kf6 {[%clk 0:00:08]}  Nxg6 {[%clk 0:00:02]} 63. Kxg6 {[%clk 0:00:08]}  Kc5 {[%clk 0:00:03]} 64. f4 {[%clk 0:00:09]}  Kd6 {[%clk 0:00:04]} 65. f5 {[%clk 0:00:08]}  Ke7 {[%clk 0:00:04]} 66. Kg7 {[%clk 0:00:09]}  Ke8 {[%clk 0:00:05]} 67. f6 {[%clk 0:00:10]}  Kd7 {[%clk 0:00:05]} 68. f7 {[%clk 0:00:10]}  Ke6 {[%clk 0:00:06]} 69. f8=Q {[%clk 0:00:11]}  Kd5 {[%clk 0:00:06]} 70. Qf6 {[%clk 0:00:11]}  Kc4 {[%clk 0:00:07]} 71. Kf7 {[%clk 0:00:12]}  Kb3 {[%clk 0:00:08]} 72. Ke7 {[%clk 0:00:13]}  Ka2 {[%clk 0:00:09]} 73. Qd6 {[%clk 0:00:14]}  Kb3 {[%clk 0:00:09]} 74. Qd4 {[%clk 0:00:14]}  Ka2 {[%clk 0:00:10]} 75. Qb6 {[%clk 0:00:14]} 1-0


[Site "https://www.chess.com"]

[Event "Titled Tuesday Blitz September 27 Late 2022"]
[White "Romanchuk, Viktor"]
[Black "Jobava, Baadur"]
[WhiteFideId "14109271"]
[BlackFideId "13601520"]
[WhiteElo "2242"]
[BlackElo "2582"]
[Result "0-1"]
[Round "02"]
[TimeControl "180+1"]
[Date "2022.09.27"]
[WhiteClock "0:00:52"]
[BlackClock "0:01:18"]

1. d4 {[%clk 0:03:00]}  Nf6 {[%clk 0:02:59]} 2. c4 {[%clk 0:03:00]}  c5 {[%clk 0:03:00]} 3. Nf3 {[%clk 0:03:00]}  e6 {[%clk 0:02:59]} 4. Nc3 {[%clk 0:02:59]}  d5 {[%clk 0:02:58]} 5. e3 {[%clk 0:02:58]}  cxd4 {[%clk 0:02:57]} 6. exd4 {[%clk 0:02:58]}  Be7 {[%clk 0:02:57]} 7. Bd3 {[%clk 0:02:48]}  dxc4 {[%clk 0:02:57]} 8. Bxc4 {[%clk 0:02:47]}  Nc6 {[%clk 0:02:58]} 9. O-O {[%clk 0:02:47]}  O-O {[%clk 0:02:59]} 10. a3 {[%clk 0:02:47]}  h6 {[%clk 0:02:50]} 11. Be3 {[%clk 0:02:38]}  Bd6 {[%clk 0:02:50]} 12. Qd3 {[%clk 0:02:35]}  Ne7 {[%clk 0:02:49]} 13. Rad1 {[%clk 0:02:28]}  Bd7 {[%clk 0:02:42]} 14. Ne5 {[%clk 0:02:26]}  Bc6 {[%clk 0:02:40]} 15. Ba2 {[%clk 0:02:17]}  Nf5 {[%clk 0:02:27]} 16. Rfe1 {[%clk 0:02:04]}  Nxe3 {[%clk 0:02:17]} 17. Rxe3 {[%clk 0:01:58]}  Bxe5 {[%clk 0:02:12]} 18. dxe5 {[%clk 0:01:57]}  Ng4 {[%clk 0:02:08]} 19. Re2 {[%clk 0:01:22]}  Qg5 {[%clk 0:01:44]} 20. Qg3 {[%clk 0:01:16]}  Rad8 {[%clk 0:01:42]} 21. Rde1 {[%clk 0:01:13]}  Rd4 {[%clk 0:01:28]} 22. h3 {[%clk 0:01:09]}  h5 {[%clk 0:01:25]} 23. Ne4 {[%clk 0:00:51]}  Bxe4 {[%clk 0:01:19]} 24. Rxe4 {[%clk 0:00:52]}  Rxe4 {[%clk 0:01:18]} 0-1


[Site "https://www.chess.com"]

[Event "Titled Tuesday Blitz September 27 Late 2022"]
[White "Rustemov, Alexander"]
[Black "Fiorito, Joaquin"]
[WhiteFideId "4119002"]
[BlackFideId "180173"]
[WhiteElo "2849"]
[BlackElo "1758"]
[Result "1-0"]
[Round "02"]
[TimeControl "180+1"]
[Date "2022.09.27"]
[WhiteClock "0:00:07"]
[BlackClock "0:00:05"]

1. d4 {[%clk 0:03:00]}  d5 {[%clk 0:02:59]} 2. c4 {[%clk 0:03:01]}  c6 {[%clk 0:02:59]} 3. Nc3 {[%clk 0:03:01]}  Nf6 {[%clk 0:03:00]} 4. e3 {[%clk 0:03:02]}  e6 {[%clk 0:03:00]} 5. Nf3 {[%clk 0:03:02]}  Nbd7 {[%clk 0:03:00]} 6. Qc2 {[%clk 0:03:02]}  Bd6 {[%clk 0:03:00]} 7. b3 {[%clk 0:03:02]}  O-O {[%clk 0:02:58]} 8. Be2 {[%clk 0:03:03]}  Qe7 {[%clk 0:02:53]} 9. O-O {[%clk 0:03:02]}  b6 {[%clk 0:02:54]} 10. Bb2 {[%clk 0:03:02]}  Bb7 {[%clk 0:02:54]} 11. Rad1 {[%clk 0:03:02]}  Rfe8 {[%clk 0:02:54]} 12. Rfe1 {[%clk 0:03:01]}  Rad8 {[%clk 0:02:55]} 13. g3 {[%clk 0:03:01]}  a6 {[%clk 0:02:44]} 14. e4 {[%clk 0:02:54]}  dxe4 {[%clk 0:02:44]} 15. Nxe4 {[%clk 0:02:54]}  Nxe4 {[%clk 0:02:43]} 16. Qxe4 {[%clk 0:02:55]}  Nf6 {[%clk 0:02:43]} 17. Qe3 {[%clk 0:02:49]}  c5 {[%clk 0:02:37]} 18. Bf1 {[%clk 0:02:40]}  cxd4 {[%clk 0:01:34]} 19. Bxd4 {[%clk 0:02:39]}  Ng4 {[%clk 0:01:25]} 20. Qe2 {[%clk 0:01:55]}  Bb4 {[%clk 0:01:24]} 21. Bxb6 {[%clk 0:01:42]}  Bxe1 {[%clk 0:01:23]} 22. Rxe1 {[%clk 0:01:40]}  Rc8 {[%clk 0:01:15]} 23. Bg2 {[%clk 0:01:37]}  Qb4 {[%clk 0:01:14]} 24. c5 {[%clk 0:01:23]}  e5 {[%clk 0:01:12]} 25. h3 {[%clk 0:01:20]}  Nf6 {[%clk 0:01:10]} 26. Qd2 {[%clk 0:00:56]}  Qxd2 {[%clk 0:01:00]} 27. Nxd2 {[%clk 0:00:56]}  Bxg2 {[%clk 0:00:58]} 28. Kxg2 {[%clk 0:00:57]}  Nd5 {[%clk 0:00:58]} 29. Nc4 {[%clk 0:00:56]}  Re6 {[%clk 0:00:49]} 30. Rd1 {[%clk 0:00:55]}  Nxb6 {[%clk 0:00:45]} 31. Nxb6 {[%clk 0:00:53]}  Rb8 {[%clk 0:00:36]} 32. b4 {[%clk 0:00:52]}  g6 {[%clk 0:00:34]} 33. Kf3 {[%clk 0:00:48]}  Kg7 {[%clk 0:00:34]} 34. Ke3 {[%clk 0:00:46]}  Rc6 {[%clk 0:00:28]} 35. Rd5 {[%clk 0:00:39]}  f6 {[%clk 0:00:18]} 36. a4 {[%clk 0:00:38]}  Rbxb6 {[%clk 0:00:17]} 37. cxb6 {[%clk 0:00:37]}  Rxb6 {[%clk 0:00:18]} 38. b5 {[%clk 0:00:32]}  axb5 {[%clk 0:00:19]} 39. axb5 {[%clk 0:00:29]}  Kf7 {[%clk 0:00:18]} 40. Kd3 {[%clk 0:00:28]}  Ke6 {[%clk 0:00:18]} 41. Kc4 {[%clk 0:00:28]}  f5 {[%clk 0:00:18]} 42. Rc5 {[%clk 0:00:26]}  h5 {[%clk 0:00:17]} 43. h4 {[%clk 0:00:23]}  e4 {[%clk 0:00:17]} 44. Rc6+ {[%clk 0:00:12]}  Rxc6+ {[%clk 0:00:17]} 45. bxc6 {[%clk 0:00:13]}  Kd6 {[%clk 0:00:18]} 46. Kd4 {[%clk 0:00:13]}  Kxc6 {[%clk 0:00:17]} 47. Ke5 {[%clk 0:00:14]}  Kd7 {[%clk 0:00:12]} 48. Kf6 {[%clk 0:00:14]}  Kd6 {[%clk 0:00:12]} 49. Kxg6 {[%clk 0:00:14]}  Ke5 {[%clk 0:00:13]} 50. Kxh5 {[%clk 0:00:12]}  f4 {[%clk 0:00:14]} 51. Kg4 {[%clk 0:00:10]}  fxg3 {[%clk 0:00:05]} 52. Kxg3 {[%clk 0:00:10]}  Kf5 {[%clk 0:00:05]} 53. h5 {[%clk 0:00:11]}  Kg5 {[%clk 0:00:06]} 54. h6 {[%clk 0:00:11]}  Kxh6 {[%clk 0:00:06]} 55. Kf4 {[%clk 0:00:11]}  Kh5 {[%clk 0:00:05]} 56. Kxe4 {[%clk 0:00:11]}  Kg5 {[%clk 0:00:06]} 57. Ke5 {[%clk 0:00:09]}  Kg4 {[%clk 0:00:05]} 58. f4 {[%clk 0:00:09]}  Kh5 {[%clk 0:00:05]} 59. Ke6 {[%clk 0:00:07]} 1-0


[Site "https://www.chess.com"]

[Event "Titled Tuesday Blitz September 27 Late 2022"]
[White "Saraci, Nderim"]
[Black "Wadsworth, Matthew J"]
[WhiteFideId "6351921"]
[BlackFideId "415804"]
[WhiteElo "2553"]
[BlackElo "2294"]
[Result "1-0"]
[Round "02"]
[TimeControl "180+1"]
[Date "2022.09.27"]
[WhiteClock "0:01:33"]
[BlackClock "0:00:20"]

1. b3 {[%clk 0:03:00]}  e5 {[%clk 0:02:58]} 2. Bb2 {[%clk 0:03:00]}  Nc6 {[%clk 0:02:59]} 3. e3 {[%clk 0:03:01]}  Nf6 {[%clk 0:02:55]} 4. c4 {[%clk 0:03:01]}  d5 {[%clk 0:02:49]} 5. cxd5 {[%clk 0:03:02]}  Nxd5 {[%clk 0:02:49]} 6. Nc3 {[%clk 0:03:03]}  Be6 {[%clk 0:02:42]} 7. Nf3 {[%clk 0:03:03]}  Bd6 {[%clk 0:02:38]} 8. Ne4 {[%clk 0:03:03]}  O-O {[%clk 0:02:32]} 9. Bc4 {[%clk 0:03:03]}  h6 {[%clk 0:02:22]} 10. O-O {[%clk 0:03:01]}  f5 {[%clk 0:02:20]} 11. Nc3 {[%clk 0:02:57]}  Be7 {[%clk 0:02:06]} 12. Nxd5 {[%clk 0:02:56]}  Bxd5 {[%clk 0:02:06]} 13. Nxe5 {[%clk 0:02:55]}  Bxc4 {[%clk 0:01:58]} 14. Nxc4 {[%clk 0:02:48]}  Qd3 {[%clk 0:01:52]} 15. Rc1 {[%clk 0:02:40]}  Rad8 {[%clk 0:01:46]} 16. Bc3 {[%clk 0:02:29]}  Bf6 {[%clk 0:01:40]} 17. Qf3 {[%clk 0:02:19]}  g6 {[%clk 0:01:14]} 18. h3 {[%clk 0:02:05]}  Kg7 {[%clk 0:01:12]} 19. Nb2 {[%clk 0:02:01]}  Qe4 {[%clk 0:01:07]} 20. Rfd1 {[%clk 0:01:51]}  Ne5 {[%clk 0:01:04]} 21. Bxe5 {[%clk 0:01:48]}  Bxe5 {[%clk 0:01:00]} 22. Nc4 {[%clk 0:01:45]}  Qxf3 {[%clk 0:00:48]} 23. gxf3 {[%clk 0:01:46]}  Bf6 {[%clk 0:00:48]} 24. Na5 {[%clk 0:01:44]}  b6 {[%clk 0:00:46]} 25. Rxc7+ {[%clk 0:01:44]}  Rf7 {[%clk 0:00:45]} 26. Rxf7+ {[%clk 0:01:44]}  Kxf7 {[%clk 0:00:46]} 27. Nc4 {[%clk 0:01:44]}  b5 {[%clk 0:00:44]} 28. Na3 {[%clk 0:01:43]}  a6 {[%clk 0:00:42]} 29. Nc2 {[%clk 0:01:38]}  Rc8 {[%clk 0:00:40]} 30. Ne1 {[%clk 0:01:38]}  Ke6 {[%clk 0:00:38]} 31. Kf1 {[%clk 0:01:38]}  Kd5 {[%clk 0:00:37]} 32. Ke2 {[%clk 0:01:39]}  g5 {[%clk 0:00:35]} 33. d4 {[%clk 0:01:39]}  Be7 {[%clk 0:00:32]} 34. Rd2 {[%clk 0:01:39]}  Rc1 {[%clk 0:00:31]} 35. Rd1 {[%clk 0:01:40]}  Rc8 {[%clk 0:00:30]} 36. Nd3 {[%clk 0:01:40]}  a5 {[%clk 0:00:25]} 37. Rc1 {[%clk 0:01:39]}  Rg8 {[%clk 0:00:20]} 38. Rc7 {[%clk 0:01:37]}  Bd6 {[%clk 0:00:20]} 39. Ra7 {[%clk 0:01:35]}  Rc8 {[%clk 0:00:20]} 40. Rxa5 {[%clk 0:01:33]}  Rc2+ {[%clk 0:00:20]} 41. Kd1 {[%clk 0:01:33]} 1-0


[Site "https://www.chess.com"]

[Event "Titled Tuesday Blitz September 27 Late 2022"]
[White "Svane, Rasmus"]
[Black "Yurovskykh, Oleksandr"]
[WhiteFideId "4657101"]
[BlackFideId "14134020"]
[WhiteElo "2674"]
[BlackElo "2303"]
[Result "1-0"]
[Round "02"]
[TimeControl "180+1"]
[Date "2022.09.27"]
[WhiteClock "0:00:09"]
[BlackClock "0:00:03"]

1. Nf3 {[%clk 0:03:00]}  d5 {[%clk 0:02:58]} 2. g3 {[%clk 0:03:00]}  c6 {[%clk 0:02:57]} 3. Bg2 {[%clk 0:03:00]}  Bg4 {[%clk 0:02:55]} 4. O-O {[%clk 0:03:01]}  Nd7 {[%clk 0:02:56]} 5. h3 {[%clk 0:03:01]}  Bh5 {[%clk 0:02:55]} 6. d4 {[%clk 0:03:01]}  e6 {[%clk 0:02:55]} 7. c4 {[%clk 0:03:01]}  Ngf6 {[%clk 0:02:55]} 8. cxd5 {[%clk 0:03:01]}  cxd5 {[%clk 0:02:51]} 9. Qb3 {[%clk 0:03:01]}  Qb6 {[%clk 0:02:50]} 10. Nc3 {[%clk 0:03:01]}  Be7 {[%clk 0:02:25]} 11. Ne5 {[%clk 0:03:00]}  O-O {[%clk 0:02:21]} 12. g4 {[%clk 0:02:56]}  Bg6 {[%clk 0:02:20]} 13. g5 {[%clk 0:02:57]}  Qxb3 {[%clk 0:02:08]} 14. axb3 {[%clk 0:02:55]}  Nxe5 {[%clk 0:02:07]} 15. gxf6 {[%clk 0:02:55]}  Bxf6 {[%clk 0:02:05]} 16. dxe5 {[%clk 0:02:55]}  Bxe5 {[%clk 0:02:06]} 17. f4 {[%clk 0:02:00]}  Bd4+ {[%clk 0:02:03]} 18. e3 {[%clk 0:02:01]}  Bf6 {[%clk 0:02:03]} 19. f5 {[%clk 0:01:52]}  Bxf5 {[%clk 0:01:19]} 20. Nxd5 {[%clk 0:01:50]}  Bd8 {[%clk 0:01:10]} 21. e4 {[%clk 0:01:44]}  Bg6 {[%clk 0:01:09]} 22. Nf4 {[%clk 0:01:43]}  Bb6+ {[%clk 0:01:08]} 23. Kh2 {[%clk 0:01:35]}  Rac8 {[%clk 0:01:08]} 24. Nxg6 {[%clk 0:01:25]}  hxg6 {[%clk 0:01:09]} 25. Bd2 {[%clk 0:01:25]}  Rc2 {[%clk 0:00:58]} 26. Bc3 {[%clk 0:01:24]}  f6 {[%clk 0:00:45]} 27. Rac1 {[%clk 0:01:23]}  Re2 {[%clk 0:00:44]} 28. Rfe1 {[%clk 0:01:17]}  Rf2 {[%clk 0:00:39]} 29. Kh1 {[%clk 0:01:16]}  e5 {[%clk 0:00:39]} 30. Rcd1 {[%clk 0:01:09]}  Bd4 {[%clk 0:00:20]} 31. Bxd4 {[%clk 0:01:08]}  exd4 {[%clk 0:00:21]} 32. Rxd4 {[%clk 0:01:08]}  Rxb2 {[%clk 0:00:22]} 33. e5 {[%clk 0:01:06]}  fxe5 {[%clk 0:00:22]} 34. Rxe5 {[%clk 0:01:05]}  Rff2 {[%clk 0:00:22]} 35. Rg4 {[%clk 0:01:02]}  Rb1+ {[%clk 0:00:18]} 36. Kh2 {[%clk 0:01:01]}  Rxb3 {[%clk 0:00:19]} 37. Rxg6 {[%clk 0:00:59]}  Rbb2 {[%clk 0:00:18]} 38. Re7 {[%clk 0:00:58]}  Kf8 {[%clk 0:00:18]} 39. Rexg7 {[%clk 0:00:55]}  a5 {[%clk 0:00:16]} 40. Kg1 {[%clk 0:00:43]}  Rfd2 {[%clk 0:00:13]} 41. h4 {[%clk 0:00:25]}  a4 {[%clk 0:00:12]} 42. Rg3 {[%clk 0:00:23]}  b5 {[%clk 0:00:11]} 43. h5 {[%clk 0:00:21]}  Rd1+ {[%clk 0:00:06]} 44. Kh2 {[%clk 0:00:18]}  Rd6 {[%clk 0:00:02]} 45. Rh7 {[%clk 0:00:14]}  b4 {[%clk 0:00:02]} 46. h6 {[%clk 0:00:13]}  a3 {[%clk 0:00:02]} 47. Rh8+ {[%clk 0:00:09]}  Ke7 {[%clk 0:00:02]} 48. Rg7+ {[%clk 0:00:10]}  Kf6 {[%clk 0:00:03]} 49. Rf8+ {[%clk 0:00:10]}  Ke5 {[%clk 0:00:04]} 50. Rg5+ {[%clk 0:00:09]}  Kd4 {[%clk 0:00:04]} 51. Rf4+ {[%clk 0:00:07]}  Ke3 {[%clk 0:00:04]} 52. Rh4 {[%clk 0:00:08]}  a2 {[%clk 0:00:04]} 53. h7 {[%clk 0:00:08]}  a1=Q {[%clk 0:00:04]} 54. h8=Q {[%clk 0:00:08]}  Rxg2+ {[%clk 0:00:01]} 55. Rxg2 {[%clk 0:00:09]}  Qxh8 {[%clk 0:00:01]} 56. Rxh8 {[%clk 0:00:09]}  Rb6 {[%clk 0:00:01]} 57. Rh3+ {[%clk 0:00:08]}  Kf4 {[%clk 0:00:01]} 58. Rb2 {[%clk 0:00:07]}  Ke4 {[%clk 0:00:01]} 59. Rh4+ {[%clk 0:00:07]}  Kd3 {[%clk 0:00:02]} 60. Rhxb4 {[%clk 0:00:08]}  Rc6 {[%clk 0:00:02]} 61. R4b3+ {[%clk 0:00:08]}  Kc4 {[%clk 0:00:02]} 62. Rc2+ {[%clk 0:00:08]}  Kxb3 {[%clk 0:00:03]} 63. Rxc6 {[%clk 0:00:09]} 1-0


[Site "https://www.chess.com"]

[Event "Titled Tuesday Blitz September 27 Late 2022"]
[White "Tari, Aryan"]
[Black "Tologon tegin, Semetei"]
[WhiteFideId "1510045"]
[BlackFideId "13800574"]
[WhiteElo "2612"]
[BlackElo "2174"]
[Result "1-0"]
[Round "02"]
[TimeControl "180+1"]
[Date "2022.09.27"]
[WhiteClock "0:00:30"]
[BlackClock "0:00:24"]

1. c4 {[%clk 0:02:57]}  e5 {[%clk 0:02:58]} 2. Nc3 {[%clk 0:02:55]}  Nf6 {[%clk 0:02:58]} 3. Nf3 {[%clk 0:02:53]}  Nc6 {[%clk 0:02:58]} 4. e3 {[%clk 0:02:41]}  Bb4 {[%clk 0:02:49]} 5. Qc2 {[%clk 0:02:41]}  d6 {[%clk 0:02:41]} 6. Ne2 {[%clk 0:02:39]}  O-O {[%clk 0:02:37]} 7. Ng3 {[%clk 0:02:34]}  Re8 {[%clk 0:02:37]} 8. a3 {[%clk 0:02:29]}  Bc5 {[%clk 0:02:35]} 9. b4 {[%clk 0:02:30]}  Bb6 {[%clk 0:02:35]} 10. Bb2 {[%clk 0:02:30]}  a5 {[%clk 0:02:33]} 11. b5 {[%clk 0:02:17]}  Ne7 {[%clk 0:02:32]} 12. Bd3 {[%clk 0:02:10]}  Ng6 {[%clk 0:02:29]} 13. O-O {[%clk 0:02:10]}  a4 {[%clk 0:02:16]} 14. h3 {[%clk 0:01:44]}  c6 {[%clk 0:02:09]} 15. bxc6 {[%clk 0:01:36]}  bxc6 {[%clk 0:02:10]} 16. Ng5 {[%clk 0:01:35]}  Bd7 {[%clk 0:01:42]} 17. Bf5 {[%clk 0:01:24]}  d5 {[%clk 0:01:39]} 18. c5 {[%clk 0:01:16]}  Bc7 {[%clk 0:01:37]} 19. Bxd7 {[%clk 0:01:14]}  Nxd7 {[%clk 0:01:34]} 20. Nf3 {[%clk 0:01:15]}  e4 {[%clk 0:01:30]} 21. Nd4 {[%clk 0:01:15]}  Nde5 {[%clk 0:01:29]} 22. Ndf5 {[%clk 0:01:09]}  Qd7 {[%clk 0:01:25]} 23. Bd4 {[%clk 0:01:07]}  Re6 {[%clk 0:01:21]} 24. Rab1 {[%clk 0:01:04]}  Rf6 {[%clk 0:00:58]} 25. Nxg7 {[%clk 0:01:04]}  Kxg7 {[%clk 0:00:44]} 26. Nh5+ {[%clk 0:01:04]}  Kh6 {[%clk 0:00:45]} 27. Nxf6 {[%clk 0:01:03]}  Qf5 {[%clk 0:00:45]} 28. f4 {[%clk 0:00:54]}  Qxf6 {[%clk 0:00:34]} 29. fxe5 {[%clk 0:00:54]}  Qg5 {[%clk 0:00:34]} 30. Rxf7 {[%clk 0:00:48]}  Bxe5 {[%clk 0:00:33]} 31. Rbf1 {[%clk 0:00:38]}  Rg8 {[%clk 0:00:30]} 32. Bxe5 {[%clk 0:00:33]}  Nxe5 {[%clk 0:00:29]} 33. R7f6+ {[%clk 0:00:31]}  Rg6 {[%clk 0:00:29]} 34. Rxg6+ {[%clk 0:00:31]}  hxg6 {[%clk 0:00:29]} 35. Qd1 {[%clk 0:00:26]}  Qg3 {[%clk 0:00:26]} 36. Kh1 {[%clk 0:00:25]}  Nf3 {[%clk 0:00:25]} 37. Rxf3 {[%clk 0:00:22]}  exf3 {[%clk 0:00:25]} 38. Qxf3 {[%clk 0:00:19]}  Qe1+ {[%clk 0:00:25]} 39. Kh2 {[%clk 0:00:19]}  Qxd2 {[%clk 0:00:26]} 40. Qf4+ {[%clk 0:00:19]}  Kh7 {[%clk 0:00:20]} 41. Qf7+ {[%clk 0:00:18]}  Kh6 {[%clk 0:00:21]} 42. Qf8+ {[%clk 0:00:19]}  Kh7 {[%clk 0:00:21]} 43. Qe7+ {[%clk 0:00:20]}  Kh6 {[%clk 0:00:21]} 44. Qh4+ {[%clk 0:00:19]}  Kg7 {[%clk 0:00:20]} 45. Qd4+ {[%clk 0:00:20]}  Qxd4 {[%clk 0:00:19]} 46. exd4 {[%clk 0:00:20]}  Kf6 {[%clk 0:00:20]} 47. g4 {[%clk 0:00:21]}  g5 {[%clk 0:00:19]} 48. Kg3 {[%clk 0:00:21]}  Kf7 {[%clk 0:00:18]} 49. h4 {[%clk 0:00:21]}  Kg6 {[%clk 0:00:18]} 50. hxg5 {[%clk 0:00:21]}  Kxg5 {[%clk 0:00:18]} 51. Kf3 {[%clk 0:00:22]}  Kg6 {[%clk 0:00:18]} 52. Kf4 {[%clk 0:00:23]}  Kf6 {[%clk 0:00:19]} 53. g5+ {[%clk 0:00:23]}  Kg6 {[%clk 0:00:20]} 54. Kg4 {[%clk 0:00:24]}  Kg7 {[%clk 0:00:21]} 55. Kf5 {[%clk 0:00:25]}  Kf7 {[%clk 0:00:21]} 56. g6+ {[%clk 0:00:26]}  Kg7 {[%clk 0:00:21]} 57. Kg5 {[%clk 0:00:26]}  Kg8 {[%clk 0:00:21]} 58. Kf6 {[%clk 0:00:27]}  Kf8 {[%clk 0:00:22]} 59. Ke6 {[%clk 0:00:28]}  Kg7 {[%clk 0:00:22]} 60. Kd6 {[%clk 0:00:29]}  Kxg6 {[%clk 0:00:23]} 61. Kxc6 {[%clk 0:00:29]}  Kf5 {[%clk 0:00:24]} 62. Kxd5 {[%clk 0:00:30]} 1-0


[Site "https://www.chess.com"]

[Event "Titled Tuesday Blitz September 27 Late 2022"]
[White "Vasquez Schroeder, Rodrigo"]
[Black "Shandrygin, Nikita"]
[WhiteFideId "3400042"]
[BlackFideId "24198668"]
[WhiteElo "2577"]
[BlackElo "2323"]
[Result "1-0"]
[Round "02"]
[TimeControl "180+1"]
[Date "2022.09.28"]
[WhiteClock "0:01:20"]
[BlackClock "0:00:03"]

1. d4 {[%clk 0:03:00]}  Nf6 {[%clk 0:02:56]} 2. Nf3 {[%clk 0:03:00]}  e6 {[%clk 0:02:54]} 3. e3 {[%clk 0:03:00]}  d5 {[%clk 0:02:51]} 4. Bd3 {[%clk 0:03:00]}  Be7 {[%clk 0:02:49]} 5. O-O {[%clk 0:03:00]}  O-O {[%clk 0:02:49]} 6. b3 {[%clk 0:03:00]}  c5 {[%clk 0:02:47]} 7. Bb2 {[%clk 0:03:01]}  cxd4 {[%clk 0:02:47]} 8. exd4 {[%clk 0:03:00]}  Nc6 {[%clk 0:02:47]} 9. Nbd2 {[%clk 0:02:59]}  Qb6 {[%clk 0:02:32]} 10. a3 {[%clk 0:02:58]}  Rd8 {[%clk 0:02:19]} 11. Qe2 {[%clk 0:02:57]}  a5 {[%clk 0:02:13]} 12. Rab1 {[%clk 0:02:56]}  a4 {[%clk 0:02:10]} 13. b4 {[%clk 0:02:55]}  Bd7 {[%clk 0:02:07]} 14. Rfe1 {[%clk 0:02:44]}  Rac8 {[%clk 0:01:49]} 15. Ne5 {[%clk 0:02:37]}  Be8 {[%clk 0:01:24]} 16. Ndf3 {[%clk 0:02:35]}  Nxe5 {[%clk 0:00:51]} 17. dxe5 {[%clk 0:02:29]}  Ne4 {[%clk 0:00:49]} 18. Bd4 {[%clk 0:02:27]}  Qc6 {[%clk 0:00:38]} 19. c4 {[%clk 0:02:26]}  b5 {[%clk 0:00:18]} 20. c5 {[%clk 0:02:16]}  Qb7 {[%clk 0:00:14]} 21. Qe3 {[%clk 0:02:13]}  Bc6 {[%clk 0:00:14]} 22. h4 {[%clk 0:02:08]}  Rd7 {[%clk 0:00:13]} 23. Ng5 {[%clk 0:02:05]}  h6 {[%clk 0:00:12]} 24. Nf3 {[%clk 0:02:04]}  Rcd8 {[%clk 0:00:11]} 25. Rbc1 {[%clk 0:01:59]}  Bf8 {[%clk 0:00:10]} 26. Bb1 {[%clk 0:01:58]}  g6 {[%clk 0:00:09]} 27. h5 {[%clk 0:01:54]}  g5 {[%clk 0:00:09]} 28. Nh2 {[%clk 0:01:54]}  Bg7 {[%clk 0:00:09]} 29. Ng4 {[%clk 0:01:54]}  Re8 {[%clk 0:00:05]} 30. Kh2 {[%clk 0:01:51]}  Qc7 {[%clk 0:00:03]} 31. f3 {[%clk 0:01:52]}  f5 {[%clk 0:00:03]} 32. fxe4 {[%clk 0:01:36]}  dxe4 {[%clk 0:00:04]} 33. Kg1 {[%clk 0:01:27]}  fxg4 {[%clk 0:00:03]} 34. Bxe4 {[%clk 0:01:27]}  Rxd4 {[%clk 0:00:03]} 35. Qxd4 {[%clk 0:01:26]}  Bxe5 {[%clk 0:00:03]} 36. Qxe5 {[%clk 0:01:19]}  Qxe5 {[%clk 0:00:03]} 37. Bh7+ {[%clk 0:01:19]}  Kxh7 {[%clk 0:00:03]} 38. Rxe5 {[%clk 0:01:20]}  Bd5 {[%clk 0:00:03]} 39. Rd1 {[%clk 0:01:20]}  Rd8 {[%clk 0:00:03]} 40. Rxe6 {[%clk 0:01:20]} 1-0


[Site "https://www.chess.com"]